Workbook

Sheet Information
A2: Introduction
A3: The purpose of this workbook is to aid in the determination of adequate vehicle change and clearance intervals and/or pedestrian intervals for an existing or proposed signalized intersection. The calculations and criteria contained within this workbook stem from Section 4.3 of PennDOT Publication 46, and Sections 4D.26 and 4E.06 of the 2009 MUTCD. All users shall reference these documents while completing this workbook to ensure workbook consistency and accuracy. This workbook is a tool to make a traffic engineering decision. This workbook is not a substitute for engineering judgment.
A9: Portions of the workbook require the user to exercise engineering judgment. Provide justification, where available, when varying from the above referenced regulations or when further explanation is necessary to support the user's findings.
A12: Assumptions
A13: 1 | B13: The results of all timing calculations are automatically rounded up to the nearest tenth of a second.
A14: 2 | B14: Default values for certain variables have been provided throughout the workbook but can be changed by the user to reflect intersection conditions. Provide justification for all deviations.
A17: Instructions
A18: 1 | B18: This workbook accounts for a single signalized intersection.
A19: 2 | B19: All pale yellow cells are available for the user to either input information or to provide a decision. Some of these input cells, when selected, provide additional information/drop-down lists for the user to input the correct information. Green cells are self calculating.
A22: 3 | B22: Begin by filling out the top section of the "Input&Findings" tab. Next, complete the "Vehicle" and "Pedestrian" tabs based on field measurements, construction plans, and/or permit plans. The "Left-Turn Movement Phases" section of the "Vehicle" tab is provided to account for turn phases that have their own unique timings.
A25: 4 | B25: Upon completion of the data entry, go back to the "Input&Findings" tab. Space has been provided in the Findings section of this tab to allow for engineering judgment as it relates to adjusting the calculated timings.
A27: 5 | B27: Print Output: Users may either print one or more tabs using conventional Excel printing procedures or they may elect to use utilize the blue print buttons throughout the workbook (must enable macros first).
A30: Version # | B30: Revision Date | C30: Revision Description
A31: 1 | B31: 2012-08-27 | C31: Original
A32: 2 | B32: 2012-11-05 | C32: Per Clearance Transmittal T-12-016 Comments

Sheet Input&Findings
A1: STUDY LOCATION AND ANALYSIS INFORMATION
L3: Municipality: | M3: X Township | AF3: Analysis Date: | AG3: 2012-11-05
L4: County: | M4: Adams County | AF4: Conducted By: | AG4: TJT
L5: PennDOT Engineering District: | M5: 8 | AF5: Checked By: | AG5: DF
AF6: Agency/Company Name: | AG6: PennDOT Central Office, BOMO
L8: Intersection Description: | M8: Main Street (SR 0141) / Oak Street (SR 1006)
A11: VEHICLE AND PEDESTRIAN INTERVAL FINDINGS
A13: Vehicle Change and Clearance Interval Findings
M15: Calculated Yellow Change Interval, Y | S15: User Defined Yellow Change Interval, Y | Y15: Calculated All-Red Clearance Interval, AR | AE15: User Defined All-Red Clearance Interval, AR | AK15: To Be Implemented
B16: Approach Description | J16: Direction | AK16: Y (s) | AN16: AR (s)
B17: =IF(Vehicle!B22="","",Vehicle!B22) -> SR 1006 (Phase 4) | J17: =IF(Vehicle!J22="","",Vehicle!J22) -> SB | M17: =Vehicle!V22 -> 4.2 | S17: 4.5 | Y17: =Vehicle!Y22 -> 4.4 | AE17: 4.5 | AK17: =IF(S17="",M17,S17) -> 4.5 | AN17: =IF(AE17="",Y17,AE17) -> 4.5
B18: =IF(Vehicle!B23="","",Vehicle!B23) -> SR 1006 (Phase 8) | J18: =IF(Vehicle!J23="","",Vehicle!J23) -> NB | M18: =Vehicle!V23 -> 3.3 | S18: 4.5 | Y18: =Vehicle!Y23 -> 1.9 | AE18: 4.5 | AK18: =IF(S18="",M18,S18) -> 4.5 | AN18: =IF(AE18="",Y18,AE18) -> 4.5
B19: =IF(Vehicle!B24="","",Vehicle!B24) -> SR 0141 (Phase 2) | J19: =IF(Vehicle!J24="","",Vehicle!J24) -> EB | M19: =Vehicle!V24 -> 4 | Y19: =Vehicle!Y24 -> 4.3 | AE19: 4.5 | AK19: 4 | AN19: 4.5
B20: =IF(Vehicle!B25="","",Vehicle!B25) -> SR 0141 (Phase 6) | J20: =IF(Vehicle!J25="","",Vehicle!J25) -> WB | M20: =Vehicle!V25 -> 3.8 | S20: 4 | Y20: =Vehicle!Y25 -> 3.3 | AE20: 4.5 | AK20: 4 | AN20: 4.5
B21: =IF(Vehicle!B26="","",Vehicle!B26) ->  | J21: =IF(Vehicle!J26="","",Vehicle!J26) ->  | M21: =Vehicle!V26 ->  | Y21: =Vehicle!Y26 -> 
B22: =IF(Vehicle!B27="","",Vehicle!B27) ->  | J22: =IF(Vehicle!J27="","",Vehicle!J27) ->  | M22: =Vehicle!V27 ->  | Y22: =Vehicle!Y27 -> 
B23: =IF(Vehicle!B30="","",Vehicle!B30) -> SR 0141 (Phase 5 Split) | J23: =IF(Vehicle!J30="","",Vehicle!J30) -> EB | M23: =Vehicle!V30 -> 4 | Y23: =Vehicle!Y30 -> 4.4 | AE23: 4.5 | AK23: =IF(S23="",M23,S23) -> 4 | AN23: =IF(AE23="",Y23,AE23) -> 4.5
B24: =IF(Vehicle!B31="","",Vehicle!B31) -> SR 0141 (Phase 1 Split) | J24: =IF(Vehicle!J31="","",Vehicle!J31) -> WB | M24: =Vehicle!V31 -> 3.5 | S24: 4 | Y24: =Vehicle!Y31 -> 4.3 | AE24: 4.5 | AK24: 4 | AN24: 4.5
B25: =IF(Vehicle!B32="","",Vehicle!B32) ->  | J25: =IF(Vehicle!J32="","",Vehicle!J32) ->  | M25: =Vehicle!V32 ->  | Y25: =Vehicle!Y32 -> 
B26: =IF(Vehicle!B33="","",Vehicle!B33) ->  | J26: =IF(Vehicle!J33="","",Vehicle!J33) ->  | M26: =Vehicle!V33 ->  | Y26: =Vehicle!Y33 -> 
B27: =IF(Vehicle!B34="","",Vehicle!B34) ->  | J27: =IF(Vehicle!J34="","",Vehicle!J34) ->  | M27: =Vehicle!V34 ->  | Y27: =Vehicle!Y34 -> 
B28: =IF(Vehicle!B35="","",Vehicle!B35) ->  | J28: =IF(Vehicle!J35="","",Vehicle!J35) ->  | M28: =Vehicle!V35 ->  | Y28: =Vehicle!Y35 -> 
B30: Additional Comments/Justifications:
A37: Pedestrian Interval Findings
B39: WITH PEDESTRIAN SIGNALS | M39: Calculated Walk Interval, Tw | R39: User Defined Walk Interval, Tw | W39: Calculated Ped. Change Interval, Tpc | AC39: User Defined Ped. Change Interval, Tpc | AI39: Greater than (Tw+Tpc)min? | AM39: To Be Implemented
B40: Description of Pedestrian Crossing
AM41: Tw (s) | AO41: Tpc (s)
B42: =IF(OR(Pedestrian!B20="",Pedestrian!M20="No"),"",Pedestrian!B20) -> Crossing of EB SR 0141 Leg 1 | M42: =IF(B42="","",Pedestrian!S20) -> 5.9 | R42: 7 | W42: =IF(B42="","",Pedestrian!V20) -> 5.8 | AI42: =IF(B42="","",IF((IF(R42="",M42,R42)+IF(AC42="",W42,AC42))>=Pedestrian!Y20,"Yes","No")) -> Yes | AM42: =IF(AI42="Yes",IF(R42="",M42,R42),"") -> 7 | AO42: =IF(AC42="",W42,AC42) -> 5.8
B43: =IF(OR(Pedestrian!B21="",Pedestrian!M21="No"),"",Pedestrian!B21) -> Crossing of EB SR 0141 Leg 2 | M43: =IF(B43="","",Pedestrian!S21) -> 6.6 | R43: 7 | W43: =IF(B43="","",Pedestrian!V21) -> 7.2 | AI43: =IF(B43="","",IF((IF(R43="",M43,R43)+IF(AC43="",W43,AC43))>=Pedestrian!Y21,"Yes","No")) -> Yes | AM43: =IF(AI43="Yes",IF(R43="",M43,R43),"") -> 7 | AO43: =IF(AC43="",W43,AC43) -> 7.2
B44: =IF(OR(Pedestrian!B22="",Pedestrian!M22="No"),"",Pedestrian!B22) -> Crossing of WB SR 0141 | M44: =IF(B44="","",Pedestrian!S22) -> 9.5 | W44: =IF(B44="","",Pedestrian!V22) -> 12.9 | AI44: =IF(B44="","",IF((IF(R44="",M44,R44)+IF(AC44="",W44,AC44))>=Pedestrian!Y22,"Yes","No")) -> Yes | AM44: 9.5 | AO44: 12.9
B45: =IF(OR(Pedestrian!B23="",Pedestrian!M23="No"),"",Pedestrian!B23) -> Crossing of SB SR 1006 | M45: =IF(B45="","",Pedestrian!S23) -> 7.3 | R45: 7 | W45: =IF(B45="","",Pedestrian!V23) -> 8.6 | AI45: =IF(B45="","",IF((IF(R45="",M45,R45)+IF(AC45="",W45,AC45))>=Pedestrian!Y23,"Yes","No")) -> Yes | AM45: 7 | AO45: 8.6
B46: =IF(OR(Pedestrian!B24="",Pedestrian!M24="No"),"",Pedestrian!B24) -> Crossing of NB SR 1006 | M46: =IF(B46="","",Pedestrian!S24) -> 7.3 | R46: 7 | W46: =IF(B46="","",Pedestrian!V24) -> 8.6 | AI46: =IF(B46="","",IF((IF(R46="",M46,R46)+IF(AC46="",W46,AC46))>=Pedestrian!Y24,"Yes","No")) -> Yes | AM46: 7 | AO46: 8.6
B47: =IF(OR(Pedestrian!B25="",Pedestrian!M25="No"),"",Pedestrian!B25) ->  | M47: =IF(B47="","",Pedestrian!S25) ->  | W47: =IF(B47="","",Pedestrian!V25) ->  | AI47: =IF(B47="","",IF((IF(R47="",M47,R47)+IF(AC47="",W47,AC47))>=Pedestrian!Y25,"Yes","No")) ->  | AO47: =IF(AC47="",W47,AC47) -> 
B48: =IF(OR(Pedestrian!B26="",Pedestrian!M26="No"),"",Pedestrian!B26) ->  | M48: =IF(B48="","",Pedestrian!S26) ->  | W48: =IF(B48="","",Pedestrian!V26) ->  | AI48: =IF(B48="","",IF((IF(R48="",M48,R48)+IF(AC48="",W48,AC48))>=Pedestrian!Y26,"Yes","No")) -> 
B49: =IF(OR(Pedestrian!B27="",Pedestrian!M27="No"),"",Pedestrian!B27) ->  | M49: =IF(B49="","",Pedestrian!S27) ->  | W49: =IF(B49="","",Pedestrian!V27) ->  | AI49: =IF(B49="","",IF((IF(R49="",M49,R49)+IF(AC49="",W49,AC49))>=Pedestrian!Y27,"Yes","No")) -> 
B51: WITHOUT PEDESTRIAN SIGNALS | M51: Calculated Min. Green Interval, Tp | V51: Additional Comments/Justifications:
B52: Description of Pedestrian Crossing
B54: =IF(OR(Pedestrian!B20="",Pedestrian!M20="Yes"),"",Pedestrian!B20) ->  | M54: =IF(B54="","",Pedestrian!AD20) -> 
B55: =IF(OR(Pedestrian!B21="",Pedestrian!M21="Yes"),"",Pedestrian!B21) ->  | M55: =IF(B55="","",Pedestrian!AD21) -> 
B56: =IF(OR(Pedestrian!B22="",Pedestrian!M22="Yes"),"",Pedestrian!B22) ->  | M56: =IF(B56="","",Pedestrian!AD22) -> 
B57: =IF(OR(Pedestrian!B23="",Pedestrian!M23="Yes"),"",Pedestrian!B23) ->  | M57: =IF(B57="","",Pedestrian!AD23) -> 
B58: =IF(OR(Pedestrian!B24="",Pedestrian!M24="Yes"),"",Pedestrian!B24) ->  | M58: =IF(B58="","",Pedestrian!AD24) -> 
B59: =IF(OR(Pedestrian!B25="",Pedestrian!M25="Yes"),"",Pedestrian!B25) ->  | M59: =IF(B59="","",Pedestrian!AD25) -> 
B60: =IF(OR(Pedestrian!B26="",Pedestrian!M26="Yes"),"",Pedestrian!B26) ->  | M60: =IF(B60="","",Pedestrian!AD26) -> 
B61: =IF(OR(Pedestrian!B27="",Pedestrian!M27="Yes"),"",Pedestrian!B27) ->  | M61: =IF(B61="","",Pedestrian!AD27) -> 
AW65: PennDOT Engineering Districts | AX65: Pennsylvania Counties
AW66: 1 | AX66: Adams County
AW67: 2 | AX67: Allegheny County
AW68: 3 | AX68: Armstrong County
AW69: 4 | AX69: Beaver County
AW70: 5 | AX70: Bedford County
AW71: 6 | AX71: Berks County
AW72: 8 | AX72: Blair County
AW73: 9 | AX73: Bradford County
AW74: 10 | AX74: Bucks County
AW75: 11 | AX75: Butler County
AW76: 12 | AX76: Cambria County
AX77: Cameron County
AX78: Carbon County
AX79: Centre County
AX80: Chester County
AX81: Clarion County
AX82: Clearfield County
AW83: Yes/No/N/A Decision | AX83: Clinton County
AW84: Yes | AX84: Columbia County
AW85: No | AX85: Crawford County
AW86: N/A | AX86: Cumberland County
AX87: Dauphin County
AX88: Delaware County
AX89: Elk County
AW90: Day of Week | AX90: Erie County
AW91: Monday | AX91: Fayette County
AW92: Tuesday | AX92: Forest County
AW93: Wednesday | AX93: Franklin County
AW94: Thursday | AX94: Fulton County
AW95: Friday | AX95: Greene County
AW96: Saturday | AX96: Huntingdon County
AW97: Sunday | AX97: Indiana County
AX98: Jefferson County
AX99: Juniata County
AX100: Lackawanna County
AX101: Lancaster County
AX102: Lawrence County
AX103: Lebanon County
AX104: Lehigh County
AX105: Luzerne County
AX106: Lycoming County
AX107: McKean County
AX108: Mercer County
AX109: Mifflin County
AX110: Monroe County
AX111: Montgomery County
AX112: Montour County
AX113: Northampton County
AX114: Northumberland County
AX115: Perry County
AX116: Philadelphia County
AX117: Pike County
AX118: Potter County
AX119: Schuylkill County
AX120: Snyder County
AX121: Somerset County
AX122: Sullivan County
AX123: Susquehanna County
AX124: Tioga County
AX125: Union County
AX126: Venango County
AX127: Warren County
AX128: Washington County
AX129: Wayne County
AX130: Westmoreland County
AX131: Wyoming County
AX132: York County

Sheet Vehicle
A1: VEHICLE CHANGE AND CLEARANCE INTERVALS
A3: Assumptions and Calibration Inputs
B5: Change and Clearance Intervals (CCI, seconds)
B9: Yellow Change Interval (Y, seconds) | X9: All-Red Clearance Interval (AR, seconds)
O10: (typ. 3-6 seconds)
B12: t | C12: = | D12: Perception-reaction time, s (1 second) | R12: 1 | X12: W | Y12: = | Z12: Width of the intersection, ft
B13: V | C13: = | D13: Approach speed, MPH | Z13: (from the stop bar to the end of the farthest traveled lane)
B14: a | C14: = | D14: Deceleration rate (10 ft/s2) | R14: 10 | X14: L | Y14: = | Z14: Length of Vehicle (20 ft) | AN14: 20
B15: g | C15: = | D15: Grade of approach, % | X15: V | Y15: = | Z15: Approach speed, MPH
A18: Calculations
B20: Through Movement Phases
B21: Approach Description | J21: Direction | M21: V | P21: g (%) | S21: W | V21: Y | Y21: AR | AB21: CCI | AE21: Comments
B22: SR 1006 (Phase 4) | J22: SB | M22: 35 | P22: -6 | S22: 203 | V22: =IF(OR(M22="",P22=""),"",ROUNDUP($R$12+(1.47*M22)/(2*$R$14+64.4*(P22/100)),1)) -> 4.2 | Y22: =IF(OR(M22="",S22=""),"",ROUNDUP((S22+$AN$14)/(1.47*M22),1)) -> 4.4 | AB22: =IF(OR(V22="",Y22=""),"",V22+Y22) -> 8.6
B23: SR 1006 (Phase 8) | J23: NB | M23: 35 | P23: 5 | S23: 75 | V23: =IF(OR(M23="",P23=""),"",ROUNDUP($R$12+(1.47*M23)/(2*$R$14+64.4*(P23/100)),1)) -> 3.3 | Y23: =IF(OR(M23="",S23=""),"",ROUNDUP((S23+$AN$14)/(1.47*M23),1)) -> 1.9 | AB23: =IF(OR(V23="",Y23=""),"",V23+Y23) -> 5.2
B24: SR 0141 (Phase 2) | J24: EB | M24: 35 | P24: -4 | S24: 200 | V24: 4 | Y24: =IF(OR(M24="",S24=""),"",ROUNDUP((S24+$AN$14)/(1.47*M24),1)) -> 4.3 | AB24: 8.3
B25: SR 0141 (Phase 6) | J25: WB | M25: 40 | P25: 2 | S25: 170 | V25: 3.8 | Y25: =IF(OR(M25="",S25=""),"",ROUNDUP((S25+$AN$14)/(1.47*M25),1)) -> 3.3 | AB25: 7.1
V26: =IF(OR(M26="",P26=""),"",ROUNDUP($R$12+(1.47*M26)/(2*$R$14+64.4*(P26/100)),1)) ->  | Y26: =IF(OR(M26="",S26=""),"",ROUNDUP((S26+$AN$14)/(1.47*M26),1)) -> 
Y27: =IF(OR(M27="",S27=""),"",ROUNDUP((S27+$AN$14)/(1.47*M27),1)) -> 
B28: Left-Turn Movement Phases
B29: Approach Description | J29: Direction | M29: V | P29: g (%) | S29: W | V29: Y | Y29: AR | AB29: CCI | AE29: Comments
B30: SR 0141 (Phase 5 Split) | J30: EB | M30: 35 | P30: -4 | S30: 203 | V30: =IF(OR(M30="",P30=""),"",ROUNDUP($R$12+(1.47*M30)/(2*$R$14+64.4*(P30/100)),1)) -> 4 | Y30: =IF(OR(M30="",S30=""),"",ROUNDUP((S30+$AN$14)/(1.47*M30),1)) -> 4.4 | AB30: =IF(OR(V30="",Y30=""),"",V30+Y30) -> 8.4
B31: SR 0141 (Phase 1 Split) | J31: WB | M31: 35 | P31: 2 | S31: 200 | V31: =IF(OR(M31="",P31=""),"",ROUNDUP($R$12+(1.47*M31)/(2*$R$14+64.4*(P31/100)),1)) -> 3.5 | Y31: =IF(OR(M31="",S31=""),"",ROUNDUP((S31+$AN$14)/(1.47*M31),1)) -> 4.3 | AB31: =IF(OR(V31="",Y31=""),"",V31+Y31) -> 7.8
Y32: =IF(OR(M32="",S32=""),"",ROUNDUP((S32+$AN$14)/(1.47*M32),1)) ->  | AB32: =IF(OR(V32="",Y32=""),"",V32+Y32) -> 
Y33: =IF(OR(M33="",S33=""),"",ROUNDUP((S33+$AN$14)/(1.47*M33),1)) -> 
Y34: =IF(OR(M34="",S34=""),"",ROUNDUP((S34+$AN$14)/(1.47*M34),1)) -> 
Y35: =IF(OR(M35="",S35=""),"",ROUNDUP((S35+$AN$14)/(1.47*M35),1)) -> 
AX40: Direction | AY40: Ltspeed
AX41: EB | AY41: 25
AX42: NB | AY42: 35
AX43: WB
AX44: SB
AX45: N-EB
AX46: N-WB
AX47: S-EB
AX48: S-WB

Sheet Pedestrian
A1: PEDESTRIAN INTERVALS
A3: Assumptions and Calibration Inputs
B5: Walk Interval1 | T5: Pedestrian Interval Variables
U6: L | V6: = | W6: Pedestrian walking distance from the curb or edge of shoulder to the far edge of the traveled way, ft
B7: (Tw, seconds)
B8: Pedestrian Change Interval
U9: Sw | V9: = | W9: Walking Speed, ft/s (3.5 ft/s) | AJ9: 3.5
B10: (Tpc, seconds)
B11: Minimum Duration
T12: Minimum Green Interval2
B13: ((Tw+Tpc)min, seconds)
B14: 1) The walk interval should be at least 7 seconds, but where justified, a minimum 4 second interval may be used. | T14: (Tp, seconds)
T15: 2) Minimum green interval when no pedestrian signals are present or proposed
A17: Calculations
B19: Description of Pedestrian Crossing | M19: Ped Signal | P19: L | S19: Tw | V19: Tpc | Y19: (Tw+Tpc)min | AD19: Tp | AH19: Comments
B20: Crossing of EB SR 0141 Leg 1 | M20: Yes | P20: 20 | S20: =IF(M20="Yes",IF(P20="","",ROUNDUP(((0.5*P20)/$AJ$9+3),1)),IF(P20="","","N/A")) -> 5.9 | V20: =IF(M20="Yes",IF(P20="","",ROUNDUP(P20/$AJ$9,1)),IF(P20="","","N/A")) -> 5.8 | Y20: =IF(M20="Yes",IF(P20="","",ROUNDUP((P20+6)/3,1)),IF(P20="","","N/A")) -> 8.7 | AD20: =IF(M20="Yes",IF(P20="","","N/A"),IF(P20="","",ROUNDUP((P20/$AJ$9)+3,1))) -> N/A
B21: Crossing of EB SR 0141 Leg 2 | M21: Yes | P21: 25 | S21: =IF(M21="Yes",IF(P21="","",ROUNDUP(((0.5*P21)/$AJ$9+3),1)),IF(P21="","","N/A")) -> 6.6 | V21: =IF(M21="Yes",IF(P21="","",ROUNDUP(P21/$AJ$9,1)),IF(P21="","","N/A")) -> 7.2 | Y21: =IF(M21="Yes",IF(P21="","",ROUNDUP((P21+6)/3,1)),IF(P21="","","N/A")) -> 10.4 | AD21: =IF(M21="Yes",IF(P21="","","N/A"),IF(P21="","",ROUNDUP((P21/$AJ$9)+3,1))) -> N/A
B22: Crossing of WB SR 0141 | M22: Yes | P22: 45 | S22: 9.5 | V22: 12.9 | Y22: 17 | AD22: N/A
B23: Crossing of SB SR 1006 | M23: Yes | P23: 30 | S23: 7.3 | V23: 8.6 | Y23: 12 | AD23: N/A
B24: Crossing of NB SR 1006 | M24: Yes | P24: 30 | S24: 7.3 | V24: 8.6 | Y24: 12 | AD24: N/A

Sheet W&L Examples
A1: Example 1: Width of Intersection (W) | AB1: Example 2: Width of Intersection (W)
J14: W | AK14: W
AS19: RT
AS20: Lane
A24: Example 3: Width of Intersection (W) | AB24: Example 4: Width of Intersection (W) for Left-Turns
AN35: W
N37: W | AF37: LT Lane | AW37: LT Lane
AN39: W
R43: RT
R44: Lane
A47: Example 1: Pedestrian Walking Distance (L) | AB47: Example 2: Pedestrian Walking Distance (L)
M56: L
O58: L
M60: L
AK61: L
A70: Example 3: Pedestrian Walking Distance (L)
K78: L
H80: ↑ | AI80: Reserved
G81: Ped. Signal | H81: o | P81: L | S81: No Ped. Signal
H82: ↓
K84: L
